[Event "FRA-ch Youth U14 2018"]
[Site "Agen"]
[Date "2018.04.17"]
[Round "4"]
[White "Decuigniere, Tom"]
[Black "Bacrot, Alexandre"]
[Result "1/2-1/2"]
[ECO "A20"]
[WhiteElo "1962"]
[BlackElo "2180"]
[Annotator "NA"]
[PlyCount "203"]
[EventDate "2018.??.??"]
[EventType "swiss"]
[EventCountry "FRA"]
[SourceTitle "playchess.com"]
[Source "ChessBase"]
[SourceQuality "1"]
[TimeControl "5400+30"]

1. c4 {[%emt 0:00:00]} e5 {[%emt 0:00:09]} 2. g3 {[%emt 0:00:00]} c6 {[%emt 0:00:11]} 3. Nf3 {[%emt 0:00:00]} e4 {[%emt 0:00:05]} 4. Nd4 {[%emt 0:00:00]} d5 {[%emt 0:00:05]} 5. cxd5 {[%emt 0:00:11]} Qxd5 {[%emt 0:00:05]} 6. Nb3 {[%emt 0:02:33]} Nf6 {[%emt 0:02:35]} 7. Nc3 {[%emt 0:02:54]} Qe5 {[%emt 0:00:06]} 8. Bg2 {[%emt 0:03:29]} Bf5 {[%emt 0:00:45]} 9. O-O {[%emt 0:03:04]} Be7 $16 {[%emt 0:05:51]} 10. d3 {[%emt 0:12:03]} exd3 {[%emt 0:08:05]} 11. exd3 {[%emt 0:18:34]} Qc7 {[%emt 0:05:20]} 12. Bf4 {[%emt 0:12:51]} Qd7 {[%emt 0:03:43]} 13. Ne4 {[%emt 0:00:29]} Na6 {[%emt 0:15:37]} 14. Nxf6+ {[%emt 0:06:22]} Bxf6 {[%emt 0:00:01]} 15. Re1+ {[%emt 0:00:08]} Kf8 {[%emt 0:00:04]} 16. d4 {[%emt 0:01:22]} Rd8 {[%emt 0:13:07]} 17. Qe2 {[%emt 0:09:01]} h6 {[%emt 0:13:53]} 18. Nc5 {[%emt 0:08:18]} Nxc5 {[%emt 0:00:59]} 19. dxc5 {[%emt 0:00:20]} Kg8 {[%emt 0:00:00]} 20. Rad1 {[%emt 0:00:17]} Qc8 {[%emt 0:00:34]} 21. b4 {[%emt 0:01:32]} Kh7 {[%emt 0:00:18]} 22. Bd6 {[%emt 0:04:42]} Bc3 {[%emt 0:06:02]} 23. Rf1 {[%emt 0:00:21]} Qe6 {[%emt 0:00:41]} 24. Qxe6 {[%emt 0:01:31]} Bxe6 {[%emt 0:00:08]} 25. a3 {[%emt 0:00:13]} Bc4 {[%emt 0:00:11]} 26. Be4+ {[%emt 0:00:02]} g6 {[%emt 0:00:31]} 27. Bd3 {[%emt 0:00:05]} Bd5 {[%emt 0:01:12]} 28. Rb1 {[%emt 0:02:19]} a6 {[%emt 0:01:48]} 29. Rfc1 {[%emt 0:00:56]} Bf6 {[%emt 0:03:46]} 30. Bc4 {[%emt 0:01:51]} Be4 {[%emt 0:06:04]} 31. Rb3 {[%emt 0:00:06]} Kg7 {[%emt 0:00:26]} 32. Re1 {[%emt 0:00:23]} Bf5 {[%emt 0:00:57]} 33. Rbe3 {[%emt 0:06:02]} Rd7 {[%emt 0:03:55]} 34. a4 {[%emt 0:02:02]} Rhd8 {[%emt 0:01:56]} 35. Kg2 {[%emt 0:01:59]} Rxd6 {[%emt 0:01:18]} 36. cxd6 {[%emt 0:00:05]} Rxd6 {[%emt 0:00:06]} 37. b5 {[%emt 0:01:14]} Rd4 {[%emt 0:02:26]} 38. Rc1 {[%emt 0:00:21]} axb5 {[%emt 0:02:32]} 39. axb5 {[%emt 0:00:01]} Be4+ {[%emt 0:00:36]} 40. Kg1 {[%emt 0:00:57]} c5 {[%emt 0:00:54]} 41. Rxe4 {[%emt 0:01:04]} Rxe4 {[%emt 0:00:34]} 42. Bd5 {[%emt 0:00:00]} Re2 {[%emt 0:01:21]} 43. Rxc5 {[%emt 0:01:12]} Bd4 {[%emt 0:01:25]} 44. Rc4 {[%emt 0:00:01]} Rd2 {[%emt 0:00:28]} 45. Bxb7 {[%emt 0:00:41]} Bxf2+ {[%emt 0:00:02]} 46. Kf1 {[%emt 0:00:35]} Be3 {[%emt 0:00:25]} 47. Rc3 {[%emt 0:00:32]} Bd4 {[%emt 0:00:19]} 48. Rc4 {[%emt 0:00:09]} Bb6 {[%emt 0:00:24]} 49. Rc6 {[%emt 0:00:29]} Be3 {[%emt 0:00:05]} 50. Rc3 {[%emt 0:00:04]} Ba7 {[%emt 0:00:22]} 51. h3 {[%emt 0:00:17]} Rf2+ {[%emt 0:00:20]} 52. Ke1 Rb2 53. Bc6 {[%emt 0:00:44]} Bb6 {[%emt 0:00:58]} 54. Kf1 {[%emt 0:00:35]} Rf2+ {[%emt 0:00:14]} 55. Ke1 {[%emt 0:00:24]} Rh2 {[%emt 0:00:02]} 56. Kf1 {[%emt 0:00:55]} Rxh3 {[%emt 0:00:21]} 57. Kg2 {[%emt 0:00:02]} Rh5 {[%emt 0:00:09]} 58. Rd3 {[%emt 0:00:34]} Rc5 {[%emt 0:00:19]} 59. Rd2 {[%emt 0:00:41]} Rc4 {[%emt 0:01:42]} 60. Re2 {[%emt 0:01:08]} Rb4 {[%emt 0:00:25]} 61. Be8 {[%emt 0:00:55]} Kf8 {[%emt 0:00:22]} 62. Bc6 {[%emt 0:00:06]} Kg7 {[%emt 0:00:56]} 63. Be8 {[%emt 0:00:18]} h5 {[%emt 0:00:05]} 64. Bc6 {[%emt 0:00:36]} Rb3 {[%emt 0:01:38]} 65. Rc2 {[%emt 0:01:16]} Bc7 {[%emt 0:01:06]} 66. Bf3 {[%emt 0:00:01]} Bxg3 {[%emt 0:00:12]} 67. Kxg3 {[%emt 0:00:05]} Rxb5 {[%emt 0:00:05]} 68. Rc6 {[%emt 0:01:06]} Rb3 {[%emt 0:01:09]} 69. Kg2 {[%emt 0:00:37]} Rb2+ {[%emt 0:00:55]} 70. Kg3 {[%emt 0:00:02]} Rb3 {[%emt 0:00:32]} 71. Kg2 {[%emt 0:00:01]} f5 {[%emt 0:00:12]} 72. Bd5 {[%emt 0:00:42]} Rd3 {[%emt 0:00:33]} 73. Be6 {[%emt 0:01:00]} Re3 {[%emt 0:00:59]} 74. Kf2 {[%emt 0:00:11]} Ra3 {[%emt 0:00:28]} 75. Bd7 {[%emt 0:00:12]} Ra5 {[%emt 0:00:16]} 76. Be8 {[%emt 0:00:10]} g5 {[%emt 0:00:55]} 77. Rg6+ {[%emt 0:00:31]} Kf8 {[%emt 0:00:05]} 78. Rxg5 {[%emt 0:00:03]} Kxe8 {[%emt 0:00:05]} 79. Rxh5 {[%emt 0:00:03]} Kf7 {[%emt 0:00:05]} 80. Rh6 {[%emt 0:00:04]} Ra3 {[%emt 0:00:27]} 81. Rb6 {[%emt 0:00:05]} Rh3 {[%emt 0:00:19]} 82. Ra6 {[%emt 0:00:05]} Rh7 {[%emt 0:00:30]} 83. Ra7+ {[%emt 0:00:06]} Kg6 {[%emt 0:00:03]} 84. Rxh7 {[%emt 0:00:04]} Kxh7 {[%emt 0:00:03]} 85. Kf3 {[%emt 0:00:05]} Kg6 {[%emt 0:00:04]} 86. Kf4 {[%emt 0:00:04]} Kf6 {[%emt 0:00:03]} 87. Kf3 {[%emt 0:00:04]} Kg5 {[%emt 0:00:04]} 88. Kg3 {[%emt 0:00:04]} f4+ {[%emt 0:00:03]} 89. Kf3 {[%emt 0:00:02]} Kf5 {[%emt 0:00:05]} 90. Kf2 {[%emt 0:00:04]} Kg4 {[%emt 0:00:06]} 91. Kg2 {[%emt 0:00:04]} Kg5 {[%emt 0:00:08]} 92. Kf3 {[%emt 0:00:01]} Kf5 {[%emt 0:00:06]} 93. Kf2 {[%emt 0:00:02]} Ke4 {[%emt 0:00:07]} 94. Ke2 {[%emt 0:00:04]} f3+ {[%emt 0:00:04]} 95. Kf2 {[%emt 0:00:02]} Kf4 {[%emt 0:00:05]} 96. Kf1 {[%emt 0:00:00]} Ke3 {[%emt 0:00:00]} 97. Ke1 {[%emt 0:00:00]} Ke4 {[%emt 0:00:00]} 98. Kf2 {[%emt 0:00:00]} Kf4 {[%emt 0:00:00]} 99. Kf1 {[%emt 0:00:00]} Kg3 {[%emt 0:00:00]} 100. Kg1 {[%emt 0:00:00]} f2+ {[%emt 0:00:00]} 101. Kf1 {[%emt 0:00:02]} Kf4 {[%emt 0:00:00]} 102. Kxf2 {[%emt 0:00:08]} 1/2-1/2

[Event "FRA-ch Youth U14 2018"]
[Site "Agen"]
[Date "2018.04.17"]
[Round "4"]
[White "Moracchini, Margaux"]
[Black "Amr-Tardif, Corail"]
[Result "0-1"]
[ECO "B07"]
[WhiteElo "1939"]
[BlackElo "1495"]
[Annotator "NA"]
[PlyCount "108"]
[EventDate "2018.??.??"]
[EventType "swiss"]
[EventCountry "FRA"]
[SourceTitle "playchess.com"]
[Source "ChessBase"]
[SourceQuality "1"]
[TimeControl "5400+30"]

1. e4 {[%emt 0:01:44]} d6 {[%emt 0:00:08]} 2. d4 {[%emt 0:00:48]} Nf6 {[%emt 0:00:05]} 3. Nc3 {[%emt 0:00:08]} g6 {[%emt 0:00:06]} 4. g3 {[%emt 0:01:19]} Bg7 {[%emt 0:00:06]} 5. Bg2 {[%emt 0:00:07]} O-O {[%emt 0:00:23]} 6. Nge2 {[%emt 0:00:13]} c6 {[%emt 0:01:25]} 7. a4 {[%emt 0:00:54]} e5 {[%emt 0:01:11]} 8. h3 {[%emt 0:02:19]} exd4 {[%emt 0:00:25]} 9. Nxd4 {[%emt 0:00:18]} Nbd7 {[%emt 0:01:21]} 10. O-O {[%emt 0:00:41]} Nc5 {[%emt 0:01:57] LiveBook: 3 Games B07: Pirc Defence: Miscellaneous Systems} 11. Kh2 $146 {[%emt 0:01:40]} ({Predecessor:} 11. a5 $14 Re8 12. Re1 d5 13. exd5 Rxe1+ 14. Qxe1 Nxd5 15. Nxd5 cxd5 16. Be3 Ne6 17. Rd1 Qc7 18. Nb5 Qxc2 19. Bxd5 Qxb2 20. Nxa7 Bd7 21. a6 Bc6 22. Nxc6 bxc6 23. Bxe6 fxe6 24. a7 Qa2 25. Qb4 Rf8 26. Qxf8+ {1-0 (26) Cuenca Jimenez,J (2493)-Hernando Rodrigo,J (2302) Montcada 2011}) 11... Ne6 {[%emt 0:14:49]} 12. Nde2 {[%emt 0:05:17]} Qc7 {[%emt 0:03:05]} 13. Be3 {[%emt 0:10:25]} Re8 {[%emt 0:03:18]} 14. f4 {[%emt 0:09:26]} Nc5 {[%emt 0:04:36]} 15. Bxc5 {[%emt 0:10:15]} dxc5 {[%emt 0:00:08]} 16. e5 {[%emt 0:04:03]} Rd8 {[%emt 0:00:58]} 17. Qc1 {[%emt 0:01:55]} Nd5 {[%emt 0:01:39]} 18. Nxd5 {[%emt 0:07:52]} cxd5 {[%emt 0:00:08]} 19. Nc3 {[%emt 0:00:27]} Be6 {[%emt 0:05:07]} 20. Rd1 {[%emt 0:01:06]} d4 {[%emt 0:06:41]} 21. Nb5 {[%emt 0:04:16]} Qb6 {[%emt 0:00:15]} 22. Nd6 {[%emt 0:02:39]} Rab8 {[%emt 0:03:28]} 23. Qd2 {[%emt 0:10:34]} a6 {[%emt 0:07:15]} 24. b4 {[%emt 0:04:42]} cxb4 {[%emt 0:07:49]} 25. Qxd4 $11 {[%emt 0:00:22]} Qxd4 {[%emt 0:03:20]} 26. Rxd4 {[%emt 0:00:05]} Rbc8 {[%emt 0:14:15]} 27. Rd2 {[%emt 0:06:39]} Bf8 {[%emt 0:04:58]} 28. Bxb7 {[%emt 0:03:03]} Rc7 {[%emt 0:01:25]} 29. Bxa6 {[%emt 0:01:19]} Bxd6 {[%emt 0:00:52]} 30. Rad1 {[%emt 0:01:40]} b3 {[%emt 0:08:08]} 31. exd6 {[%emt 0:04:34]} Rxc2 {[%emt 0:00:36]} 32. Re2 {[%emt 0:03:13]} Rxe2+ {[%emt 0:02:24]} 33. Bxe2 {[%emt 0:00:04]} Bf5 {[%emt 0:00:48]} 34. Rd2 {[%emt 0:01:22]} Bc2 {[%emt 0:01:05]} 35. Bd1 {[%emt 0:00:50]} Bxd1 {[%emt 0:01:16]} 36. Rxd1 {[%emt 0:00:03]} Kf8 {[%emt 0:00:07]} 37. Kg2 {[%emt 0:00:16]} Ke8 {[%emt 0:01:35]} 38. Re1+ {[%emt 0:00:59]} Kd7 {[%emt 0:01:11]} 39. Rd1 {[%emt 0:00:38]} Rb8 {[%emt 0:00:14]} 40. Kf3 {[%emt 0:00:17]} b2 {[%emt 0:00:06]} 41. Rb1 {[%emt 0:00:03]} Kxd6 {[%emt 0:00:08]} 42. a5 {[%emt 0:00:11]} Rb3+ {[%emt 0:00:14]} 43. Ke4 {[%emt 0:00:32]} Kc5 {[%emt 0:01:01]} 44. g4 {[%emt 0:00:30]} Kc4 {[%emt 0:01:11]} 45. a6 {[%emt 0:00:41]} Kc3 {[%emt 0:00:05]} 46. a7 {[%emt 0:00:31]} Ra3 {[%emt 0:00:05]} 47. Rg1 {[%emt 0:00:23]} Rxa7 {[%emt 0:00:25]} 48. Ke5 {[%emt 0:00:16]} Ra1 {[%emt 0:00:26]} 49. Rg3+ {[%emt 0:00:32]} Kc4 {[%emt 0:00:21]} 50. Kf6 {[%emt 0:00:04]} b1=Q {[%emt 0:00:12]} 51. Kxf7 {[%emt 0:00:02]} Ra7+ {[%emt 0:00:25]} 52. Kf6 {[%emt 0:00:05]} Qb6+ {[%emt 0:00:13]} 53. Kg5 {[%emt 0:00:06]} Ra5+ {[%emt 0:00:11]} 54. Kh6 {[%emt 0:00:27]} g5+ {[%emt 0:00:23]} 0-1

[Event "FRA-ch Youth U14 2018"]
[Site "Agen"]
[Date "2018.04.17"]
[Round "4"]
[White "Randrianarimanana, Alicia"]
[Black "Tomasi, Elise"]
[Result "1-0"]
[ECO "C26"]
[WhiteElo "1872"]
[BlackElo "1689"]
[Annotator "NA"]
[PlyCount "41"]
[EventDate "2018.??.??"]
[EventType "swiss"]
[EventCountry "FRA"]
[SourceTitle "playchess.com"]
[Source "ChessBase"]
[SourceQuality "1"]
[TimeControl "5400+30"]

1. e4 e5 {[%emt 0:00:15]} 2. Nc3 {[%emt 0:00:00]} Nf6 {[%emt 0:00:24]} 3. Bc4 {[%emt 0:00:00]} Bc5 {[%emt 0:00:14]} 4. d3 {[%emt 0:00:00]} Nc6 {[%emt 0:00:53]} 5. f4 {[%emt 0:00:00]} d6 {[%emt 0:00:17]} 6. Na4 {[%emt 0:00:23]} Bb6 {[%emt 0:00:41]} 7. Nxb6 {[%emt 0:00:08]} axb6 {[%emt 0:00:24]} 8. Nf3 {[%emt 0:00:05]} O-O {[%emt 0:07:23]} 9. O-O {[%emt 0:00:43] C27: Vienna Game: 2...Nf6 3 Bc4 Nxe4} Qe7 {[%emt 0:13:26]} (9... Na5 10. Nd2 exf4 11. Rxf4 Nxc4 12. Nxc4 d5 13. exd5 Nxd5 14. Rf2 Re8 15. Qf3 Re1+ 16. Rf1 Rxf1+ 17. Qxf1 {½-½ (24) Adhiban,B (2655)-Movsesian,S (2647) Riadh 2017}) 10. c3 {[%emt 0:01:05]} Na5 {[%emt 0:01:44]} 11. Bd5 {[%emt 0:04:11]} c6 {[%emt 0:03:29]} 12. Bxf7+ $146 {[%emt 0:00:30]} ({Find the theoretical novelty and annotate with similar games:} 12. Bb3 Nxb3 13. Qxb3 b5 14. a3 Bg4 {½-½ (49) Shen,J (1810)-Mangei,J (1796) Hannover 2014}) 12... Rxf7 {[%emt 0:00:30]} 13. b4 {[%emt 0:07:44]} Bg4 {[%emt 0:11:26]} 14. bxa5 {[%emt 0:11:05]} Rxa5 {[%emt 0:03:45]} 15. h3 {[%emt 0:15:43]} Bxf3 {[%emt 0:02:00]} 16. Qxf3 {[%emt 0:00:55]} Ra8 {[%emt 0:12:40]} 17. c4 {[%emt 0:03:17]} Nd7 {[%emt 0:05:15]} 18. Qg3 {[%emt 0:03:19]} Raf8 {[%emt 0:05:28]} 19. Be3 {[%emt 0:01:31]} exf4 $11 {[%emt 0:04:48]} 20. Bxf4 {[%emt 0:00:14]} Ne5 {[%emt 0:01:32]} 21. Bxe5 1-0

[Event "FRA-ch Youth U14 2018"]
[Site "Agen"]
[Date "2018.04.17"]
[Round "4"]
[White "Sumarriva Paulin, Laura"]
[Black "Nguyen, Thao Nhi"]
[Result "1-0"]
[ECO "A43"]
[WhiteElo "1665"]
[BlackElo "1861"]
[Annotator "NA"]
[PlyCount "40"]
[EventDate "2018.??.??"]
[EventType "swiss"]
[EventCountry "FRA"]
[SourceTitle "playchess.com"]
[Source "ChessBase"]
[SourceQuality "1"]
[TimeControl "5400+30"]

1. d4 {[%emt 0:00:00]} c5 {[%emt 0:00:03]} 2. e3 {[%emt 0:00:05]} e6 {[%emt 0:00:23]} 3. c4 {[%emt 0:00:27]} Nf6 {[%emt 0:01:11]} 4. Nc3 {[%emt 0:00:34]} d5 {[%emt 0:01:59]} 5. Nf3 {[%emt 0:03:17] LiveBook: 2302 Games} Nc6 {[%emt 0:02:54]} 6. Bd3 {[%emt 0:05:39]} Be7 $11 {[%emt 0:04:38]} 7. O-O {[%emt 0:03:04]} O-O {[%emt 0:01:39]} 8. dxc5 {[%emt 0:06:48]} Bxc5 {[%emt 0:01:21]} 9. a3 {[%emt 0:01:12]} a5 {[%emt 0:02:45]} 10. Qc2 {[%emt 0:02:21]} h6 {[%emt 0:06:46]} 11. b3 {[%emt 0:05:53]} d4 {[%emt 0:05:54]} 12. Rd1 {[%emt 0:02:50]} Kh8 {[%emt 0:00:30]} 13. Be4 {[%emt 0:00:30]} Nxe4 {[%emt 0:00:30]} 14. Nxe4 {[%emt 0:00:30]} Be7 {[%emt 0:00:30]} 15. exd4 {[%emt 0:00:30]} f5 {[%emt 0:00:30]} 16. Ng3 {[%emt 0:00:30]} Bf6 {[%emt 0:00:30]} 17. Bb2 {[%emt 0:00:30]} Qe8 {[%emt 0:00:30]} 18. Re1 {[%emt 0:00:30]} Bd7 {[%emt 0:00:30]} 19. d5 {[%emt 0:00:30]} exd5 {[%emt 0:00:30]} 20. cxd5 {[%emt 0:00:30]} Nd8 {[%emt 0:00:30]} 1-0

[Event "FRA-ch Youth U14 2018"]
[Site "Agen"]
[Date "2018.04.17"]
[Round "4"]
[White "Gattegno-Graciet, Maylis"]
[Black "Chemla, Anouk"]
[Result "0-1"]
[ECO "A48"]
[WhiteElo "1588"]
[BlackElo "1705"]
[Annotator "NA"]
[PlyCount "122"]
[EventDate "2018.??.??"]
[EventType "swiss"]
[EventCountry "FRA"]
[SourceTitle "playchess.com"]
[Source "ChessBase"]
[SourceQuality "1"]
[TimeControl "5400+30"]

1. d4 {[%emt 0:00:00]} Nf6 {[%emt 0:00:16]} 2. Nf3 {[%emt 0:00:00]} g6 {[%emt 0:00:25]} 3. Bg5 {[%emt 0:00:09]} Bg7 {[%emt 0:00:15]} 4. e3 {[%emt 0:00:19]} O-O {[%emt 0:00:54]} 5. c4 {[%emt 0:00:43]} c5 {[%emt 0:02:48]} 6. Nc3 {[%emt 0:02:06]} d6 {[%emt 0:03:12]} 7. Be2 {[%emt 0:01:47]} Nbd7 {[%emt 0:01:54]} 8. O-O {[%emt 0:01:52]} h6 {[%emt 0:02:02]} 9. Bh4 {[%emt 0:01:09]} g5 {[%emt 0:04:19]} 10. Bg3 {[%emt 0:00:46]} Nh5 {[%emt 0:01:39]} 11. Qc2 {[%emt 0:01:33]} Nxg3 {[%emt 0:00:11]} 12. hxg3 {[%emt 0:00:05]} b6 {[%emt 0:07:15]} 13. Rad1 {[%emt 0:04:01]} Bb7 {[%emt 0:01:56]} 14. b3 {[%emt 0:02:18]} a6 {[%emt 0:11:34]} 15. d5 {[%emt 0:06:14]} Qc7 {[%emt 0:03:43]} 16. Nd2 {[%emt 0:04:03]} Nf6 {[%emt 0:04:21]} 17. Nde4 {[%emt 0:02:11]} Nxe4 {[%emt 0:01:16]} 18. Nxe4 {[%emt 0:00:14]} Bc8 {[%emt 0:01:16]} 19. Nc3 {[%emt 0:06:11]} Bd7 {[%emt 0:01:54]} 20. Bd3 {[%emt 0:04:31]} Rfb8 {[%emt 0:07:53]} 21. Ne2 {[%emt 0:09:56]} b5 {[%emt 0:02:54]} 22. Rb1 {[%emt 0:02:40]} b4 {[%emt 0:01:16]} 23. Bf5 {[%emt 0:03:07]} a5 {[%emt 0:01:29]} 24. Bxd7 {[%emt 0:01:00]} Qxd7 {[%emt 0:00:07]} 25. Nc1 {[%emt 0:02:02]} a4 {[%emt 0:01:41]} 26. Nd3 {[%emt 0:04:09]} axb3 {[%emt 0:00:59]} 27. axb3 {[%emt 0:00:09]} Ra3 {[%emt 0:00:34]} 28. Ne1 {[%emt 0:02:34]} Rba8 {[%emt 0:00:23]} 29. Nf3 {[%emt 0:01:35]} Ra2 {[%emt 0:01:37]} 30. Qd3 {[%emt 0:01:48]} R8a3 {[%emt 0:02:25]} 31. Rfd1 {[%emt 0:01:36]} Qa7 {[%emt 0:00:44]} 32. Rd2 {[%emt 0:01:41]} Bc3 {[%emt 0:02:38]} 33. Rxa2 {[%emt 0:01:34]} Rxa2 {[%emt 0:00:01]} 34. Qe4 {[%emt 0:01:35]} Bf6 {[%emt 0:03:15]} 35. Qf5 {[%emt 0:02:24]} Re2 {[%emt 0:01:51]} 36. Nh2 {[%emt 0:01:50]} Qa8 {[%emt 0:10:25]} 37. Ng4 {[%emt 0:01:16]} Bg7 {[%emt 0:00:20]} 38. Qd3 {[%emt 0:01:47]} Qa2 {[%emt 0:01:13]} 39. Qf5 {[%emt 0:05:13]} Qc2 {[%emt 0:01:41]} 40. Qxc2 {[%emt 0:00:52]} Rxc2 {[%emt 0:00:02]} 41. e4 {[%emt 0:00:51]} Rd2 {[%emt 0:04:49]} 42. Re1 {[%emt 0:01:47]} h5 {[%emt 0:01:37]} 43. Ne3 {[%emt 0:02:08]} Bd4 {[%emt 0:00:35]} 44. Kf1 {[%emt 0:02:20]} Rb2 {[%emt 0:00:36]} 45. f4 {[%emt 0:01:30]} Rxb3 {[%emt 0:01:44]} 46. Nf5 {[%emt 0:00:48]} Bc3 {[%emt 0:01:02]} 47. Re3 {[%emt 0:01:29]} Rb1+ {[%emt 0:00:59]} 48. Ke2 {[%emt 0:01:10]} Re1+ {[%emt 0:01:09]} 49. Kd3 {[%emt 0:01:46]} Rxe3+ {[%emt 0:00:59]} 50. Kxe3 {[%emt 0:00:14]} Bf6 {[%emt 0:01:40]} 51. Kd3 {[%emt 0:00:58]} g4 {[%emt 0:00:58]} 52. Kc2 {[%emt 0:01:37]} Kf8 {[%emt 0:00:18]} 53. Ne3 {[%emt 0:00:44]} Bd4 {[%emt 0:01:22]} 54. Nf1 {[%emt 0:00:40]} Kg7 {[%emt 0:01:20]} 55. Kb3 {[%emt 0:00:22]} Kg6 {[%emt 0:00:22]} 56. Kc2 {[%emt 0:00:52]} f5 {[%emt 0:00:54]} 57. exf5+ {[%emt 0:00:29]} Kxf5 {[%emt 0:00:09]} 58. Kb3 {[%emt 0:00:31]} Ke4 {[%emt 0:00:23]} 59. Kc2 {[%emt 0:00:38]} Bf2 {[%emt 0:00:20]} 60. Kb2 {[%emt 0:01:37]} Kd3 {[%emt 0:00:20]} 61. Kb3 {[%emt 0:00:18]} Ke2 0-1

[Event "FRA-ch Youth U14 2018"]
[Site "Agen"]
[Date "2018.04.18"]
[Round "5"]
[White "Popov, Konstantin"]
[Black "Cohen Revivo, Shoham"]
[Result "1/2-1/2"]
[ECO "C07"]
[WhiteElo "2150"]
[BlackElo "2180"]
[Annotator "NA"]
[PlyCount "117"]
[EventDate "2018.??.??"]
[EventType "swiss"]
[EventCountry "FRA"]
[SourceTitle "playchess.com"]
[Source "ChessBase"]
[SourceQuality "1"]
[TimeControl "5400+30"]

1. e4 {[%emt 0:00:00]} e6 {[%emt 0:00:21]} 2. d4 {[%emt 0:00:00]} d5 {[%emt 0:00:09]} 3. Nd2 {[%emt 0:00:27]} c5 {[%emt 0:00:07]} 4. Ngf3 {[%emt 0:00:13]} cxd4 {[%emt 0:00:07]} 5. Nxd4 {[%emt 0:00:26]} Nc6 {[%emt 0:00:04]} 6. Bb5 {[%emt 0:01:07]} Bd7 {[%emt 0:00:04]} 7. Nxc6 {[%emt 0:01:43]} bxc6 {[%emt 0:00:13]} 8. Bd3 {[%emt 0:00:24]} Qc7 {[%emt 0:00:03]} 9. Qe2 {[%emt 0:00:48] C07: French Tarrasch: 3...c5, 4 Ngf3 and 4 exd5 Qxd5} Ne7 {[%emt 0:00:05]} 10. Nf3 {[%emt 0:13:23]} Ng6 {[%emt 0:00:57]} 11. O-O {[%emt 0:02:24]} (11. e5 Rb8 12. c3 Be7 13. h4 f6 14. Bxg6+ hxg6 15. Bf4 f5 16. Bg5 Bxg5 17. Nxg5 {½-½ (47) Malakhov,V (2691)-Gharamian,T (2626) Mali Losinj 2017}) 11... Bd6 {[%emt 0:02:37] LiveBook: 15 Games} 12. Re1 {[%emt 0:01:56]} Nf4 {[%emt 0:07:33]} 13. Bxf4 {[%emt 0:01:00]} Bxf4 {[%emt 0:00:02]} 14. c4 {[%emt 0:01:12]} dxc4 $146 {[%emt 0:06:34]} ({Predecessor:} 14... O-O 15. exd5 cxd5 16. g3 Bh6 {1-0 (31) Oratovsky,M (2473)-Ider,B (2465) Elgoibar 2016}) 15. Bxc4 {[%emt 0:00:08]} O-O {[%emt 0:01:00]} 16. e5 {[%emt 0:07:27]} c5 {[%emt 0:00:11]} 17. Qe4 {[%emt 0:07:40]} Bh6 {[%emt 0:00:07]} 18. Bd3 {[%emt 0:01:22]} g6 {[%emt 0:00:10]} 19. Qh4 {[%emt 0:01:50]} Bg7 {[%emt 0:00:01]} 20. Rac1 {[%emt 0:00:14]} Bc6 {[%emt 0:02:57]} 21. Rxc5 {[%emt 0:09:12]} Qb6 {[%emt 0:00:07]} 22. Rxc6 {[%emt 0:01:04]} ({Much worse is} 22. Ng5 h6 $17) 22... Qxc6 {[%emt 0:00:10]} 23. Be4 {[%emt 0:00:03]} Qa4 {[%emt 0:02:22]} 24. Bxa8 {[%emt 0:01:38]} Qxh4 {[%emt 0:00:05]} 25. Nxh4 {[%emt 0:00:06]} Rxa8 {[%emt 0:00:06]} 26. f4 {[%emt 0:04:04]} Rc8 {[%emt 0:00:15]} 27. Re2 {[%emt 0:03:45]} Bf8 {[%emt 0:02:24]} 28. g3 {[%emt 0:02:36]} Rc1+ {[%emt 0:01:18]} 29. Kg2 {[%emt 0:00:34]} Bc5 {[%emt 0:03:04]} 30. Nf3 {[%emt 0:00:21]} h6 {[%emt 0:00:41]} 31. Ne1 {[%emt 0:04:38]} Bb6 {[%emt 0:00:26]} 32. Kf3 {[%emt 0:01:58]} Rd1 {[%emt 0:02:13]} 33. Nc2 $14 {[%emt 0:05:44]} Kg7 {[%emt 0:02:01]} 34. Na3 {[%emt 0:04:49]} g5 {[%emt 0:02:27]} 35. Nc4 {[%emt 0:04:58]} Rf1+ {[%emt 0:02:13]} 36. Ke4 {[%emt 0:00:39]} Bc5 {[%emt 0:00:29]} 37. a3 {[%emt 0:04:14]} g4 {[%emt 0:03:24]} 38. b4 {[%emt 0:01:21]} Bg1 {[%emt 0:00:06]} 39. a4 {[%emt 0:07:13]} Rf3 {[%emt 0:08:49]} 40. Ne3 {[%emt 0:04:40]} Bxe3 {[%emt 0:01:25]} 41. Rxe3 {[%emt 0:00:02]} Rf2 {[%emt 0:00:01]} 42. a5 {[%emt 0:02:06]} Rb2 {[%emt 0:00:47]} 43. Rd3 {[%emt 0:01:15]} Rxb4+ {[%emt 0:00:22]} 44. Rd4 {[%emt 0:00:04]} Rb2 {[%emt 0:01:11]} 45. f5 {[%emt 0:00:21]} h5 {[%emt 0:06:29]} 46. fxe6 {[%emt 0:00:33]} fxe6 {[%emt 0:00:04]} 47. Rd7+ {[%emt 0:00:17]} Kg6 {[%emt 0:00:07]} 48. Rxa7 {[%emt 0:00:15]} Rxh2 {[%emt 0:01:10]} 49. a6 {[%emt 0:01:02]} Ra2 {[%emt 0:01:10]} 50. Ra8 {[%emt 0:00:52]} Ra4+ {[%emt 0:00:14]} 51. Ke3 {[%emt 0:00:38]} Kf5 {[%emt 0:00:34]} 52. Rh8 {[%emt 0:00:32]} Rxa6 {[%emt 0:03:32]} 53. Rxh5+ {[%emt 0:00:05]} Kg6 {[%emt 0:00:09]} 54. Rh8 {[%emt 0:00:05]} Ra3+ {[%emt 0:01:20]} 55. Kf4 {[%emt 0:00:25]} Ra4+ {[%emt 0:00:06]} 56. Ke3 {[%emt 0:00:06]} Ra3+ {[%emt 0:00:01]} 57. Kf4 {[%emt 0:00:05]} Ra4+ {[%emt 0:00:05]} 58. Ke3 {[%emt 0:00:04]} Ra3+ {[%emt 0:00:06]} 59. Kf4 {[%emt 0:00:05]} 1/2-1/2